fUSD/lending_fUSD_20240815
["ID","MTS","AMOUNT","RATE_DAILY","PERIOD"]
[335002908,1723717847952,-204.11,0.00024389,2]
[335002909,1723717847962,-204.11,0.00024389,2]
[335002910,1723717847974,-204.11,0.00024389,2]
[335002911,1723717847984,-204.11,0.00024389,2]
[335002912,1723717847994,-204.11,0.00024389,2]
[335002913,1723717848003,-483.98977228,0.00024399,11]
[335002914,1723717848015,-52214.09739016,0.00024399,11]
[335002915,1723717848041,-204.11,0.00024389,2]
[335002916,1723717848052,-434.87582292,0.00024399,11]
[335002928,1723718010288,550.0,0.0001,2]
[335002930,1723718268152,4690.27047258,0.00012121,2]
[335002931,1723718422636,20430.11559917,0.00012121,2]
[335002932,1723718499641,20408.47029117,0.00012121,2]
[335002933,1723718696344,2342.45587798,0.00012938,2]
[335002978,1723719038548,-155.0,0.00013052,2]
[335002979,1723719038558,-306.9434504,0.00013086,2]
[335002980,1723719038568,-316.83560636,0.0001385,2]
[335002981,1723719038577,-292.64347517,0.00013851,2]
[335002982,1723719038586,-150.11,0.00013973,2]
[335002983,1723719038596,-154.14,0.00013973,2]
[335002984,1723719038610,-155.0,0.00014234,2]
[335002985,1723719038620,-2342.45587798,0.00014509,2]
[335002986,1723719038629,-300.0,0.00014516,2]
[335002987,1723719038638,-546.93040052,0.00014681,2]
[335002988,1723719038648,-211.5464329,0.000149,2]
[335002989,1723719038657,-420.0,0.00015968,2]
[335002990,1723719038666,-1764.72554699,0.000165,2]
[335002991,1723719038676,-499.99,0.00017534,2]
[335002992,1723719038685,-587.0,0.00017564,2]
[335002993,1723719038695,-2534.18383302,0.000186,2]
[335002994,1723719038704,-647.16182356,0.00019,2]
[335002995,1723719038713,-400.0,0.00019109,2]
[335002996,1723719038723,-1000.0,0.00019147,2]
[335002997,1723719038732,-823.0,0.00019321,2]
[335002998,1723719038742,-191.35,0.00019501,2]
[335002999,1723719038751,-150.0,0.00019726,2]
[335003000,1723719038761,-500.0,0.00020306,2]
[335003001,1723719038770,-826.2123252,0.00020313,2]
[335003002,1723719038779,-10282.707,0.00020394,2]
[335003003,1723719038788,-241423.85,0.00020756,2]
[335003004,1723719038797,-500.0,0.00020833,2]
[335003005,1723719038807,-2517.0,0.00021,3]
[335003006,1723719038816,-2002.5,0.00021188,2]
[335003007,1723719038825,-200.0,0.00021193,2]
[335003008,1723719038834,-150.11,0.00021209,2]
[335003009,1723719038843,-1152.0,0.00021253,2]
[335003010,1723719038856,-400.0,0.00021498,2]
[335003011,1723719038865,-1000.0,0.0002154,2]
[335003012,1723719038875,-792.08302183,0.00021683,2]
[335003013,1723719038884,-167.0,0.00021736,2]
[335003014,1723719038893,-191.35,0.00021765,2]
[335003015,1723719038902,-466.0,0.00021918,2]
[335003016,1723719038911,-154.75,0.00021918,2]
[335003017,1723719038920,-500.0,0.00022527,2]
[335003018,1723719038929,-209.06,0.00022627,2]
[335003019,1723719038938,-167.0,0.00022932,2]
[335003020,1723719038947,-155.0,0.00023095,2]
[335003021,1723719038957,-155.0,0.00023095,2]
[335003022,1723719038967,-2507.43,0.0002322,2]
[335003023,1723719038976,-5000.0,0.00023312,2]
[335003024,1723719038985,-569.0,0.00023378,2]
[335003025,1723719038995,-154.14,0.00023435,2]
[335003026,1723719039004,-180.0,0.00023499,2]
[335003027,1723719039014,-3000.0,0.000238,2]
[335003028,1723719039023,-1011.86,0.000238,2]
[335003029,1723719039032,-400.0,0.00023887,2]
[335003030,1723719039041,-500.0,0.00023889,2]
[335003031,1723719039050,-500.0,0.00023899,2]
[335003032,1723719039060,-2110.0,0.00023933,30]
[335003033,1723719039070,-1000.0,0.00023934,2]
[335003034,1723719039080,-400.0,0.00024,7]
[335003035,1723719039089,-191.35,0.00024029,2]
[335003036,1723719039100,-23733.99,0.00024043,2]
[335003037,1723719039109,-228.96,0.000241,2]
[335003038,1723719039119,-167.0,0.00024128,2]
[335003039,1723719039129,-2025.49404849,0.000242,2]
[335003040,1723719039138,-1306.44389609,0.0002425,2]
[335003041,1723719039148,-474.3151,0.00024298,2]
[335003042,1723719039157,-100084.0691,0.00024299,2]
[335003043,1723719039166,-5587.8235,0.00024299,2]
[335003044,1723719039176,-1263.0163,0.000243,2]
[335003045,1723719039185,-3805.0128341,0.00024333,2]
[335003046,1723719039194,-200.0,0.00024373,2]
[335003047,1723719039203,-300.0,0.00024395,5]
[335003048,1723719039212,-500.0,0.00024398,2]
[335003049,1723719039222,-500.0,0.00024398,2]
[335003050,1723719039232,-500.0,0.00024398,2]
[335003052,1723719039241,-277.6943844,0.00024398,2]
[335003053,1723719039251,-500.0,0.00024398,7]
[335003054,1723719039261,-500.0,0.00024398,7]
[335003055,1723719039270,-500.0,0.00024398,7]
[335003056,1723719039279,-507.78456922,0.00024398,7]
[335003057,1723719039288,-270.00222587,0.00024398,2]
[335003058,1723719039298,-395895.37141794,0.00024399,11]
[335003059,1723719039307,-461.31025967,0.00024399,2]
[335003060,1723719039316,-573.10786222,0.00024399,2]
[335003061,1723719039325,-2000.0,0.00024399,2]
[335003062,1723719039334,-200.0,0.00024399,2]
[335003063,1723719039343,-543518.04244283,0.00024399,2]
[335003064,1723719039353,-200.0,0.00024399,2]
[335003065,1723719039362,-200.0,0.00024399,2]
[335003066,1723719039372,-500.0,0.00024399,7]
[335003067,1723719039382,-1321.9809,0.00024399,2]
[335003068,1723719039392,-3146.13932654,0.000244,2]
[335003069,1723719039402,-495.0,0.000244,7]
[335003070,1723719039411,-6814025.47699896,0.000244,5]
[335003071,1723719039423,-348.23005832,0.000244,5]
[335003072,1723719039434,-4522.71124739,0.000244,5]
[335003073,1723719039445,-2611.44251202,0.000244,5]
[335003074,1723719039459,-47645.499317,0.000244,5]
[335003075,1723719039471,-888.51999758,0.000244,5]
[335003076,1723719039482,-298.41728368,0.000244,5]
[335003077,1723719039493,-5241.13075619,0.000244,5]
[335003078,1723719039504,-280.407,0.000244,5]
[335003079,1723719039515,-4776.38969827,0.000244,5]
[335003080,1723719039526,-3938.81999992,0.000244,5]
[335003081,1723719039542,-367.34377443,0.00023018,2]
[335003082,1723719039552,-2625.74150577,0.000244,5]
[335003083,1723719039563,-379.69662664,0.000244,5]
[335003084,1723719039574,-734.24349592,0.000244,5]
[335003085,1723719039585,-597.24,0.000244,5]
[335003086,1723719039597,-426.56280045,0.000244,5]
[335003087,1723719039608,-556.34975306,0.000244,5]
[335003088,1723719039618,-1340.01178555,0.000244,5]
[335003089,1723719039630,-104211.76152966,0.000244,5]
[335003090,1723719039648,-1921.952907,0.000244,5]
[335003091,1723719042905,-2342.45587798,0.00014509,2]
[335003092,1723719042914,-175.19,0.00023686,2]
[335003093,1723719042924,-46374.92915533,0.000244,5]
[335003100,1723719043412,-1517.72895731,0.000244,5]
[335003102,1723719043424,-13042.14392744,0.000244,5]
[335003104,1723719043436,-449.14751806,0.000244,5]
[335003105,1723719043448,-23008.90933301,0.000244,5]
[335003112,1723719043920,-899.3916763,0.000244,5]
[335003113,1723719043932,-1050.28853543,0.000244,5]
[335003114,1723719043944,-1594538.63845214,0.000244,5]
[335003115,1723719043955,-3322.05327844,0.000244,5]
[335003116,1723719043967,-3799.999993,0.000244,5]
[335003117,1723719043978,-2743.43994,0.000244,5]
[335003118,1723719043989,-2015.81860129,0.000244,5]
[335003119,1723719044000,-1130.77964873,0.000244,5]
[335003120,1723719044011,-7739.04730282,0.000244,5]
[335003121,1723719044023,-835.04991627,0.000244,5]
[335003122,1723719044034,-489.29187735,0.000244,5]
[335003123,1723719044045,-669.13666281,0.000244,5]
[335003124,1723719044057,-1579.72210345,0.000244,5]
[335003125,1723719044069,-695.84866301,0.000244,5]
[335003149,1723719046473,-300.50035694,0.000131,2]
[335003150,1723719046484,-422.69,0.0002439,3]
[335003151,1723719046494,-17850.83313475,0.000244,5]
[335003152,1723719046505,-39037.12957447,0.000244,5]
[335003153,1723719046518,-38824.55601128,0.000244,5]
[335003154,1723719046529,-18936.81130913,0.000244,5]
[335003155,1723719046541,-111006.47196711,0.000244,5]
[335003156,1723719046553,-310.0,0.000244,5]
[335003157,1723719046565,-315.79999999,0.000244,5]
[335003158,1723719046576,-1650.24238056,0.000244,5]
[335003159,1723719046587,-509.09593425,0.000244,5]
[335003160,1723719046598,-1470.8494084,0.000244,5]
[335003161,1723719046722,-3348.50149363,0.000244,5]
[335003162,1723719046734,-1174.44002,0.000244,5]
[335003167,1723719144609,155.0,0.00012966,2]
[335003169,1723719174616,155.0,0.00012966,2]
[335003176,1723720014419,2342.45587798,0.00012938,2]
[335003177,1723720015909,155.0,0.00012966,2]
[335003178,1723720030335,-200.7247488,0.000131,2]
[335003179,1723720044296,-917.9315802,0.00013291,2]
[335003193,1723720231532,-316.83560636,0.00013391,2]
[335003195,1723720231542,-155.0,0.00013391,2]
[335003197,1723720231552,-159.41,0.00013973,2]
[335003199,1723720231561,-156.7,0.00013973,2]
[335003201,1723720231571,-1250.65459456,0.00013973,2]
[335003203,1723720231580,-546.93040052,0.00014681,2]
[335003204,1723720231591,-584.20386859,0.00014681,2]
[335003205,1723720231600,-258.47952218,0.00014681,2]
[335003206,1723720231610,-211.5464329,0.000149,2]
[335003207,1723720231619,-211.5464329,0.000149,2]
[335003208,1723720231628,-189.15910914,0.0001611,2]
[335003209,1723720231637,-247.70078944,0.000165,2]
[335003210,1723720231647,-300.0,0.00017259,2]
[335003211,1723720231657,-499.99,0.0001726,2]
[335003212,1723720231666,-5081.5,0.0001726,2]
[335003213,1723720231675,-11498.0,0.000181,5]
[335003214,1723720231684,-420.0,0.00018846,2]
[335003215,1723720231694,-162.64,0.00019417,2]
[335003216,1723720231704,-202.0,0.0001976,2]
[335003217,1723720231714,-500.0,0.00020052,2]
[335003218,1723720231723,-202.0,0.0002012,2]
[335003219,1723720231733,-1000.0,0.00020316,2]
[335003220,1723720231743,-500.0,0.00020411,2]
[335003221,1723720231753,-500.0,0.00020467,2]
[335003222,1723720231763,-202.0,0.0002049,2]
[335003223,1723720231772,-167.0,0.00020578,2]
[335003224,1723720231786,-202.0,0.0002085,2]
[335003225,1723720231796,-150.0,0.00020902,2]
[335003226,1723720231806,-240.0,0.00020983,2]
[335003227,1723720231815,-202.0,0.0002122,2]
[335003228,1723720231826,-9712.74,0.00021249,2]
[335003230,1723720231836,-167.41,0.00021332,2]
[335003232,1723720231846,-262.75,0.00021361,2]
[335003235,1723720231859,-250.0,0.00021473,2]
[335003236,1723720231869,-202.0,0.0002158,2]
[335003238,1723720231879,-1000.0,0.00021624,2]
[335003240,1723720231888,-162.64,0.00021681,2]
[335003241,1723720231898,-250.0,0.00021809,2]
[335003242,1723720231907,-167.0,0.00021827,2]
[335003243,1723720231917,-388.33,0.00021918,2]
[335003244,1723720231926,-154.75,0.00021918,2]
[335003245,1723720231934,-202.0,0.0002195,2]
[335003246,1723720231944,-152.0,0.00022037,3]
[335003247,1723720231953,-156.7,0.00022174,2]
[335003248,1723720231963,-202.0,0.0002231,2]
[335003249,1723720231973,-202.0,0.0002268,2]
[335003250,1723720231982,-167.0,0.00022728,2]
[335003251,1723720231992,-202.0,0.0002304,2]
[335003252,1723720232001,-619.19164591,0.00023051,2]
[335003253,1723720232011,-167.41,0.00023092,2]
[335003254,1723720232020,-500.0,0.00023151,2]
[335003255,1723720232030,-2766.0,0.000233,2]
[335003256,1723720232039,-202.0,0.0002341,2]
[335003257,1723720232049,-240.0,0.00023605,2]
[335003258,1723720232058,-167.0,0.00023629,2]
[335003259,1723720232068,-151.19,0.00023699,2]
[335003260,1723720232078,-150.0,0.00023699,2]
[335003261,1723720232087,-150.0,0.00023699,2]
[335003262,1723720232097,-202.0,0.0002377,2]
[335003263,1723720232106,-162.64,0.00023945,2]
[335003264,1723720232116,-647.16182356,0.00024117,2]
[335003265,1723720232125,-2534.18383302,0.00024134,2]
[335003266,1723720232135,-202.0,0.0002414,2]
[335003267,1723720232144,-782.46178449,0.0002416,2]
[335003268,1723720232153,-1101.65075,0.0002416,2]
[335003269,1723720232162,-2025.49404849,0.00024201,2]
[335003270,1723720232171,-12500.0,0.0002421,2]
[335003271,1723720232181,-733.0,0.0002425,2]
[335003272,1723720232190,-8229.3478,0.000243,2]
[335003273,1723720232200,-50647.35904311,0.000243,2]
[335003274,1723720232331,-4555.22356862,0.000243,2]
[335003275,1723720232345,-956.69375819,0.000243,2]
[335003276,1723720232357,-2338.34835547,0.000243,2]
[335003277,1723720232368,-1074.32,0.000243,2]
[335003278,1723720232380,-678.69156372,0.000243,2]
[335003279,1723720232391,-642.3977412,0.000243,2]
[335003280,1723720232403,-9501.97386969,0.000243,2]
[335003281,1723720232413,-786.9146,0.000243,2]
[335003282,1723720232422,-1000.0,0.000243,2]
[335003283,1723720232432,-573.55003392,0.000243,2]
[335003284,1723720232441,-194.61,0.000243,2]
[335003285,1723720232450,-322.81251756,0.000243,2]
[335003286,1723720232460,-419.74381386,0.000243,2]
[335003287,1723720232469,-900.0,0.00024302,2]
[335003288,1723720232479,-559.47424282,0.00024302,2]
[335003289,1723720232490,-14.07579107,0.00024302,2]
[335003290,1723720232499,-383.49212204,0.00024305,2]
[335003291,1723720232510,-190.05791185,0.00024305,2]
[335003292,1723720232519,-573.55003389,0.00024307,2]
[335003293,1723720232528,-573.55003389,0.00024309,2]
[335003294,1723720232537,-573.55003389,0.00024311,2]
[335003295,1723720232546,-573.55003389,0.00024314,2]
[335003296,1723720232555,-152.67384191,0.00024316,2]
[335003297,1723720232565,-573.55003389,0.00024316,2]
[335003298,1723720232574,-1477.40304194,0.00024316,2]
[335003299,1723720232585,-3094.55064906,0.00024316,2]
[335003300,1723720232597,-994.65481035,0.00024316,2]
[335003301,1723720232608,-1184.24886143,0.00024316,2]
[335003302,1723720232620,-368.7704374,0.00024316,2]
[335003303,1723720232632,-3702.08686573,0.00024316,2]
[335003304,1723720232647,-2174.47,0.00024316,2]
[335003305,1723720232660,-8148.55376811,0.00024316,2]
[335003306,1723720232670,-902.90070716,0.00024327,2]
[335003307,1723720238662,-258.62,0.00023476,2]
[335003308,1723720238672,-97.09929284,0.00024327,2]
[335003309,1723720238681,-300.77004437,0.00024368,2]
[335003310,1723720238693,-746.48651101,0.00024368,2]
[335003311,1723720238784,-4486.95061977,0.00024368,2]
[335003312,1723720238799,-1587.81759761,0.00024368,2]
[335003313,1723720238811,-8124.20292101,0.00024368,2]
[335003314,1723720238821,-194.0,0.0002439,11]
[335003315,1723720238831,-300.0,0.00024395,5]
[335003316,1723720238841,-168.05434707,0.00024397,2]
[335003317,1723720238850,-500.0,0.00024399,7]
[335003318,1723720238862,-500.0,0.00024399,7]
[335003319,1723720238872,-344.40546939,0.00024399,7]
[335003320,1723720238882,-1118.65632901,0.00024399,10]
[335003321,1723720238892,-274.8040018,0.00024399,2]
[335003322,1723720238901,-324.72916656,0.00024399,7]
[335003323,1723720238911,-10206.1207917,0.00024399,2]
[335003324,1723720238921,-189.0015581,0.00024399,2]
[335003325,1723720238931,-500.0,0.00024399,2]
[335003326,1723720238941,-500.0,0.00024399,2]
[335003327,1723720238951,-459.93083446,0.00024399,2]
[335003328,1723720238960,-408.70465492,0.00024399,2]
[335003329,1723720238970,-500.0,0.00024399,2]
[335003330,1723720238979,-351.75559009,0.00024399,2]
[335003331,1723720238989,-500.0,0.00024399,2]
[335003332,1723720238999,-500.0,0.00024399,2]
[335003333,1723720239008,-159.46138467,0.00024399,2]
[335003334,1723720239018,-2359.60449491,0.000244,2]
[335003335,1723720239028,-152059.27424001,0.000244,11]
[335003336,1723720239039,-10441.17998013,0.000244,11]
[335003337,1723720239051,-139164.37534587,0.000244,11]
[335003338,1723720239061,-103936.3937832,0.000244,11]
[335003339,1723720239071,-573.10786222,0.000244,2]
[335003340,1723720239080,-495.0,0.000244,7]
[335003341,1723720239090,-2000.0,0.000244,2]
[335003342,1723720239099,-200.0,0.000244,2]
[335003343,1723720239109,-150.425863,0.000244,30]
[335003344,1723720239119,-200.0,0.000244,2]
[335003345,1723720239129,-200.0,0.000244,2]
[335003346,1723720239139,-405086.48151057,0.000244,5]
[335003347,1723720239151,-127736.19999999,0.000244,5]
[335003348,1723720239162,-3513.2,0.000244,5]
[335003349,1723720239173,-94909.66814021,0.000244,5]
[335003351,1723720239184,-612.18240239,0.000244,5]
[335003353,1723720239195,-313.27,0.000244,5]
[335003355,1723720239207,-254.99999,0.000244,5]
[335003357,1723720239217,-18580.03199997,0.000244,5]
[335003359,1723720239229,-1514.58297267,0.000244,5]
[335003361,1723720239240,-5559.26332723,0.000244,5]
[335003364,1723720239251,-500.0,0.000244,5]
[335003410,1723720239728,-98922.29761486,0.000244,5]
[335003412,1723720239740,-983.2495644,0.000244,5]
[335003431,1723720239935,-386.40244669,0.000244,5]
[335003434,1723720239947,-3039.83845718,0.000244,5]
[335003436,1723720239960,-997.51350637,0.000244,5]
[335003476,1723720243932,-1103.76787673,0.000244,5]
[335003478,1723720243943,-9291.90965979,0.000244,5]
[335003481,1723720243955,-1838.78,0.000244,5]
[335003483,1723720243967,-1789.29207492,0.000244,5]
[335003485,1723720243980,-1719.99873845,0.000244,5]
[335003486,1723720243991,-735.896,0.000244,5]
[335003487,1723720244016,-165.42,0.000243,2]
[335003488,1723720244026,-3320.68457414,0.00024333,2]
[335003489,1723720244035,-2201.21221219,0.000244,5]
[335003490,1723720244046,-1137.88598791,0.000244,5]
[335003491,1723720245649,-1025.76510938,0.00023912,2]
[335003492,1723720245659,-2534.18383302,0.00024131,2]
[335003493,1723720245669,-17189.36167256,0.000244,5]
[335003494,1723720245680,-2458.01466891,0.000244,5]
[335003495,1723720245691,-618.3903605,0.000244,5]
[335003496,1723720245754,-438.217861,0.000244,5]
[335003497,1723720245765,-114348.75312725,0.000244,5]
[335003498,1723720245776,-854.0,0.000244,5]
[335003499,1723720245792,-3299.11777029,0.000244,5]
[335003500,1723720245803,-1418.17641098,0.000244,5]
[335003501,1723720245841,-3860.7078036,0.000244,5]
[335003502,1723720245853,-584.03992789,0.000244,5]
[335003503,1723720245924,-4045.52753629,0.000244,5]
[335003504,1723720245936,-1963.28462603,0.000244,5]
[335003505,1723720245946,-297.41662691,0.000244,5]
[335003506,1723720246011,-805.58226419,0.000244,5]
[335003508,1723720246023,-10391.97917367,0.000244,5]
[335003511,1723720246034,-1239.88380057,0.000244,5]
[335003513,1723720246045,-873.74712415,0.000244,5]
[335003514,1723720246055,-400.0,0.000244,5]
[335003521,1723720750551,-3818.3343,0.00013588,2]
[335003522,1723720750573,-155.0,0.00014234,2]
[335003523,1723720750595,-146.6657,0.00014235,2]
[335003524,1723721108106,11665930.23471947,0.00011,2]
[335003527,1723721206230,-214.50311892,0.0001385,2]
[335003528,1723721206252,-155.0,0.00014245,2]
[335003529,1723721206274,-153.57974888,0.00014298,2]
[335003530,1723721206297,-399.98852883,0.00014398,2]
[335003531,1723721254797,-155.0,0.00017452,2]
[335003532,1723721254820,-561.16526901,0.000186,2]
[335003533,1723721254842,-300.0,0.00019725,2]
[335003534,1723721254863,-150.99,0.00019726,2]
[335003573,1723721432679,-150.11,0.00013973,2]
[335003575,1723721432689,-155.0,0.00014753,2]
[335003577,1723721432698,-153.28,0.0001978,2]
[335003579,1723721432709,-200.0,0.0002,10]
[335003581,1723721432720,-432.42689861,0.00020911,2]
[335003582,1723721432732,-67.57310139,0.00020911,2]
[335003583,1723721432743,-884.21,0.00021056,2]
[335003584,1723721432753,-8925.23,0.00021056,2]
[335003585,1723721432763,-215.85,0.00021591,2]
[335003586,1723721432773,-1772.48888785,0.00021623,2]
[335003587,1723721432785,-1554.98111215,0.00021623,2]
[335003588,1723721432796,-2554.91,0.00021697,2]
[335003589,1723721432806,-527.66797958,0.000217,4]
[335003590,1723721432821,-295.33202042,0.000217,4]
[335003591,1723721432830,-272.52,0.00021762,2]
[335003592,1723721432839,-20.89476327,0.00021777,2]
[335003593,1723721432851,-229.10523673,0.00021777,2]
[335003594,1723721432861,-154.75,0.00021918,2]
[335003595,1723721432871,-1000.0,0.00021976,2]
[335003596,1723721432880,-153.28,0.00022043,2]
[335003597,1723721432889,-150.11,0.00022174,2]
[335003598,1723721432898,-288.33468283,0.000222,10]
[335003599,1723721432908,-200.0,0.0002222,10]
[335003600,1723721432917,-200.0,0.0002222,10]
[335003601,1723721432927,-323.6,0.00022259,2]
[335003602,1723721432936,-180.0,0.00022456,2]
[335003603,1723721432945,-57.82889267,0.00022553,2]
[335003605,1723721432958,-495.80749926,0.00022553,2]
[335003607,1723721432967,-132.61250074,0.000227,2]
[335003609,1723721432979,-2633.64042211,0.000227,2]
[335003611,1723721432988,-2000.0,0.00023,5]
[335003613,1723721432998,-219.10441029,0.00023115,2]
[335003615,1723721433009,-280.89558971,0.00023115,2]
[335003617,1723721433018,-256.0,0.0002345,2]
[335003619,1723721433028,-163.406818,0.00023562,2]
[335003621,1723721433037,-253.56,0.00023672,2]
[335003623,1723721433048,-150.0,0.00023672,2]
[335003625,1723721433058,-150.0,0.00023672,2]
[335003626,1723721433067,-150.64,0.00023672,2]
[335003628,1723721433077,-271.62211744,0.0002378,2]
[335003630,1723721433088,-326.80050338,0.0002378,2]
[335003631,1723721433099,-5234.78007918,0.0002378,2]
[335003632,1723721433109,-4869.8662,0.0002378,2]
[335003633,1723721433118,-178.81007375,0.0002378,2]
[335003634,1723721433128,-322.06855872,0.0002378,2]
[335003635,1723721433137,-333.49399572,0.0002378,2]
[335003636,1723721433147,-333.49399568,0.0002384,2]
[335003637,1723721433157,-153.69611438,0.00023877,2]
[335003638,1723721433166,-189.284048,0.00023879,2]
[335003639,1723721433176,-500.0,0.00023879,2]
[335003640,1723721433188,-500.0,0.00023879,2]
[335003641,1723721433197,-500.0,0.00023879,2]
[335003642,1723721433207,-500.0,0.00023879,2]
[335003643,1723721433216,-500.0,0.00023879,2]
[335003644,1723721433226,-613.81794722,0.00023879,2]
[335003645,1723721433235,-500.0,0.00023879,7]
[335003646,1723721433245,-500.0,0.00023879,7]
[335003647,1723721433254,-500.0,0.00023879,7]
[335003648,1723721433264,-500.0,0.00023879,7]
[335003649,1723721433274,-500.0,0.00023879,7]
[335003650,1723721433283,-500.0,0.00023879,7]
[335003651,1723721433293,-500.0,0.00023879,7]
[335003652,1723721433302,-500.0,0.00023879,7]
[335003653,1723721433311,-500.0,0.00023879,7]
[335003654,1723721433321,-500.0,0.00023879,7]
[335003655,1723721433330,-500.0,0.00023879,7]
[335003656,1723721433339,-500.0,0.00023879,7]
[335003657,1723721433349,-500.0,0.00023879,7]
[335003658,1723721433358,-500.0,0.00023879,7]
[335003659,1723721433367,-292.88211136,0.00023879,7]
[335003660,1723721433376,-19269.70127351,0.0002388,11]
[335003661,1723721433388,-806.59811442,0.0002388,11]
[335003662,1723721433399,-971.11180087,0.0002388,11]
[335003663,1723721433410,-69241.98744884,0.0002388,11]
[335003670,1723721438790,-15119.4000222,0.0002388,11]
[335003671,1723721438883,-294621.47668723,0.0002388,11]
[335003672,1723721438893,-2087687.58324458,0.0002388,2]
[335003673,1723721438904,-409.99759927,0.0002388,2]
[335003674,1723721438915,-343.26358931,0.0002388,2]
[335003675,1723721439072,-1120.66502401,0.0002388,2]
[335003676,1723721439136,-20501.00796055,0.0002388,2]
[335003677,1723721439148,-1886.88,0.0002388,2]
[335003678,1723721439195,-5882.52916118,0.0002388,2]
[335003679,1723721439206,-14042.43253206,0.0002388,2]
[335003680,1723721439225,-1527.0295442,0.0002388,2]
[335003681,1723721439238,-12212.22040255,0.0002388,2]
[335003682,1723721439249,-998.52381322,0.0002388,2]
[335003695,1723721439758,-336.83546788,0.0002388,2]
[335003696,1723721439844,-11784.10761534,0.0002388,2]
[335003697,1723721439862,-595.86624357,0.0002388,2]
[335003698,1723721439872,-1468.4262694,0.0002388,2]
[335003699,1723721439883,-3536.06282993,0.0002388,2]
[335003700,1723721439894,-384.644286,0.0002388,2]
[335003701,1723721439905,-707.12336694,0.0002388,2]
[335003702,1723721439915,-537.43611604,0.0002388,2]
[335003703,1723721439926,-6496.46948832,0.0002388,2]
[335003704,1723721439936,-511.70455756,0.0002388,2]
[335003705,1723721439946,-527.39556223,0.0002388,2]
[335003706,1723721439957,-404.766579,0.0002388,2]
[335003707,1723721439968,-7939.06706332,0.0002388,2]
[335003708,1723721439978,-14528.82706611,0.0002388,2]
[335003709,1723721439989,-1102.45451024,0.0002388,2]
[335003710,1723721440000,-735.2,0.0002388,2]
[335003711,1723721440011,-20692.77483312,0.0002388,2]
[335003712,1723721440022,-1682.86722354,0.0002388,2]
[335003713,1723721440033,-1370.37733886,0.0002388,2]
[335003714,1723721440047,-500.0,0.0002388,2]
[335003715,1723721440058,-681.43362743,0.0002388,2]
[335003716,1723721440073,-596159.08042571,0.0002388,2]
[335003717,1723721440083,-500000.0,0.0002388,2]
[335003718,1723721440093,-333.49399568,0.00023899,2]
[335003719,1723721440102,-1119.3036458,0.00023912,2]
[335003721,1723721440112,-333.49399568,0.00023959,2]
[335003723,1723721440121,-158879.77990736,0.00024,7]
[335003725,1723721440132,-25360.76951518,0.00024,7]
[335003726,1723721440144,-1048.582763,0.00024,7]
[335003727,1723721440155,-846.52210567,0.00024,7]
[335003728,1723721440166,-1202.16487984,0.00024,7]
[335003729,1723721440178,-328.70937086,0.00024,7]
[335003730,1723721440196,-8602.52214844,0.00024,7]
[335003731,1723721440206,-15122.18966287,0.00024,7]
[335003732,1723721440217,-147513.1394155,0.00024,7]
[335003733,1723721440229,-927.22751103,0.00024,7]
[335003734,1723721440240,-29361.71921951,0.00024,7]
[335003747,1723721443660,-294.55058203,0.00024,7]
[335003748,1723721443679,-12121.81620916,0.00024,7]
[335003749,1723721443691,-1529.61921,0.00024,7]
[335003753,1723721445905,-550.0,0.00024,7]
[335003754,1723721445917,-925.46051709,0.00024,7]
[335003755,1723721445966,-312.64,0.00024,7]
[335003756,1723721445977,-2541.60576451,0.00024,7]
[335003757,1723721446025,-6222.66512936,0.00024,7]
[335003758,1723721446087,-3873.9264371,0.00024,7]